[Event "*** SCC Grand Prix: Titled Tuesday Blitz"]
[Site "Chess.com"]
[Date "2020.08.11"]
[Round "3"]
[White "Mbneu"]
[Black "Alomaterapia"]
[Result "0-1"]
[WhiteElo "2217"]
[BlackElo "2520"]
[TimeControl "180+1"]
[EndTime "10:27:54 PDT"]
[Termination "Alomaterapia won by resignation"]

1. d4 {[%clk 0:02:44.8]} 1... Nf6 {[%clk 0:02:59.8]} 2. c4 {[%clk 0:02:44.4]}
2... g6 {[%clk 0:03:00.3]} 3. Nc3 {[%clk 0:02:44.2]} 3... Bg7 {[%clk 0:03:00.8]}
4. e4 {[%clk 0:02:43.6]} 4... d6 {[%clk 0:03:01.4]} 5. f4 {[%clk 0:02:44.2]}
5... O-O {[%clk 0:03:01.6]} 6. Nf3 {[%clk 0:02:44.8]} 6... c5 {[%clk 0:03:00.3]}
7. d5 {[%clk 0:02:45.4]} 7... e6 {[%clk 0:03:00.6]} 8. Be2 {[%clk 0:02:45.8]}
8... exd5 {[%clk 0:03:00.3]} 9. cxd5 {[%clk 0:02:46.7]} 9... Nbd7 {[%clk
0:02:53.4]} 10. O-O {[%clk 0:02:45.7]} 10... Re8 {[%clk 0:02:53.6]} 11. Nd2
{[%clk 0:02:45.2]} 11... c4 {[%clk 0:02:54.1]} 12. Kh1 {[%clk 0:02:29.7]} 12...
b5 {[%clk 0:02:31.7]} 13. Nxb5 {[%clk 0:02:22.5]} 13... Nxe4 {[%clk 0:02:31.4]}
14. Nxe4 {[%clk 0:02:20.2]} 14... Rxe4 {[%clk 0:02:31.1]} 15. Nxd6 {[%clk
0:02:20.2]} 15... Rd4 {[%clk 0:02:29.2]} 16. Qc2 {[%clk 0:02:08.4]} 16... Nb6
{[%clk 0:02:25.9]} 17. Nxc8 {[%clk 0:01:41.8]} 17... Rxc8 {[%clk 0:02:26.8]} 18.
Be3 {[%clk 0:01:32.8]} 18... Rxd5 {[%clk 0:02:26.5]} 19. Rfd1 {[%clk 0:01:11.1]}
19... c3 {[%clk 0:01:57.5]} 20. Bxb6 {[%clk 0:00:58.6]} 20... cxb2 {[%clk
0:01:26.6]} 21. Bxd8 {[%clk 0:00:16.2]} 21... Rxc2 {[%clk 0:01:25.1]} 22. Rab1
{[%clk 0:00:08.1]} 22... Rxd1+ {[%clk 0:01:18.2]} 23. Bxd1 {[%clk 0:00:07.7]}
23... Rc1 {[%clk 0:01:18.3]} 0-1

[Event "*** SCC Grand Prix: Titled Tuesday Blitz"]
[Site "Chess.com"]
[Date "2020.08.11"]
[Round "3"]
[White "Nikolaj_6"]
[Black "capatl"]
[Result "1-0"]
[WhiteElo "2617"]
[BlackElo "2401"]
[TimeControl "180+1"]
[EndTime "10:28:02 PDT"]
[Termination "Nikolaj_6 won by resignation"]

1. e4 {[%clk 0:03:00.9]} 1... c5 {[%clk 0:02:59.6]} 2. Nf3 {[%clk 0:03:00.6]}
2... e6 {[%clk 0:03:00.2]} 3. d4 {[%clk 0:03:00.2]} 3... cxd4 {[%clk 0:03:01.1]}
4. Nxd4 {[%clk 0:03:01]} 4... a6 {[%clk 0:03:01.7]} 5. Nc3 {[%clk 0:03:01.3]}
5... Qc7 {[%clk 0:02:58.9]} 6. a3 {[%clk 0:02:59.4]} 6... Nf6 {[%clk 0:02:56.2]}
7. Qf3 {[%clk 0:02:58.2]} 7... d6 {[%clk 0:02:55.8]} 8. Qg3 {[%clk 0:02:57.1]}
8... Nbd7 {[%clk 0:02:55.9]} 9. Be3 {[%clk 0:02:52.5]} 9... b5 {[%clk 0:02:39]}
10. O-O-O {[%clk 0:02:50.8]} 10... Rb8 {[%clk 0:02:27.6]} 11. f3 {[%clk
0:02:42.8]} 11... b4 {[%clk 0:02:23.4]} 12. axb4 {[%clk 0:02:42.1]} 12... Rxb4
{[%clk 0:02:24.3]} 13. Qe1 {[%clk 0:02:40.7]} 13... Rb8 {[%clk 0:01:58.8]} 14.
Nb3 {[%clk 0:02:36.9]} 14... Be7 {[%clk 0:01:56.1]} 15. g4 {[%clk 0:02:35.7]}
15... Ne5 {[%clk 0:01:50]} 16. Be2 {[%clk 0:02:33.2]} 16... Nc4 {[%clk
0:01:40.9]} 17. Bxc4 {[%clk 0:02:32.2]} 17... Qxc4 {[%clk 0:01:41.8]} 18. Rd4
{[%clk 0:02:26.1]} 18... Qc7 {[%clk 0:01:37.3]} 19. Qd2 {[%clk 0:02:23.2]} 19...
Nd7 {[%clk 0:01:35.9]} 20. Bg5 {[%clk 0:02:18.8]} 20... Ne5 {[%clk 0:01:21.9]}
21. Bxe7 {[%clk 0:02:04.8]} 21... Qxe7 {[%clk 0:01:22.8]} 22. Rf1 {[%clk
0:01:59.4]} 22... Rb6 {[%clk 0:01:10.6]} 23. g5 {[%clk 0:01:43.8]} 23... O-O
{[%clk 0:01:01.6]} 24. f4 {[%clk 0:01:43.9]} 24... Ng6 {[%clk 0:00:52.9]} 25. f5
{[%clk 0:01:38.8]} 25... Ne5 {[%clk 0:00:45.3]} 26. f6 {[%clk 0:01:37.6]} 26...
Qc7 {[%clk 0:00:43]} 27. fxg7 {[%clk 0:01:37]} 27... Kxg7 {[%clk 0:00:41]} 28.
h4 {[%clk 0:01:24.1]} 28... Bb7 {[%clk 0:00:40.4]} 29. h5 {[%clk 0:01:22.2]}
29... Nc4 {[%clk 0:00:25.3]} 30. Qf4 {[%clk 0:01:16.2]} 30... e5 {[%clk
0:00:22.2]} 31. Qf6+ {[%clk 0:01:15.8]} 31... Kg8 {[%clk 0:00:22.6]} 32. h6
{[%clk 0:01:15.4]} 1-0

[Event "*** SCC Grand Prix: Titled Tuesday Blitz"]
[Site "Chess.com"]
[Date "2020.08.11"]
[Round "3"]
[White "Grandelicious"]
[Black "tvjosue"]
[Result "1-0"]
[WhiteElo "2767"]
[BlackElo "2513"]
[TimeControl "180+1"]
[EndTime "10:28:03 PDT"]
[Termination "Grandelicious won by resignation"]

1. Nf3 {[%clk 0:03:00.9]} 1... c5 {[%clk 0:02:56.6]} 2. g3 {[%clk 0:02:59.7]}
2... Nc6 {[%clk 0:02:55.9]} 3. Bg2 {[%clk 0:02:59.6]} 3... g6 {[%clk 0:02:56.5]}
4. c4 {[%clk 0:02:53.9]} 4... Bg7 {[%clk 0:02:53.1]} 5. Nc3 {[%clk 0:02:53.4]}
5... e5 {[%clk 0:02:53]} 6. d3 {[%clk 0:02:49.1]} 6... d6 {[%clk 0:02:53.1]} 7.
Nd2 {[%clk 0:02:37.6]} 7... Nge7 {[%clk 0:02:51.3]} 8. Nf1 {[%clk 0:02:37.2]}
8... Be6 {[%clk 0:02:49.3]} 9. Ne3 {[%clk 0:02:36.9]} 9... Rb8 {[%clk
0:02:49.8]} 10. Ned5 {[%clk 0:02:33]} 10... h6 {[%clk 0:02:49.5]} 11. O-O {[%clk
0:02:27.8]} 11... a6 {[%clk 0:02:49.4]} 12. Bd2 {[%clk 0:02:01.6]} 12... O-O
{[%clk 0:02:46.7]} 13. a3 {[%clk 0:01:48]} 13... b5 {[%clk 0:02:44.1]} 14. cxb5
{[%clk 0:01:48.9]} 14... axb5 {[%clk 0:02:43.6]} 15. b4 {[%clk 0:01:49.8]} 15...
c4 {[%clk 0:02:34.9]} 16. dxc4 {[%clk 0:01:44.5]} 16... bxc4 {[%clk 0:02:34.9]}
17. Nxe7+ {[%clk 0:01:26.4]} 17... Nxe7 {[%clk 0:02:34.6]} 18. Be3 {[%clk
0:01:05.5]} 18... d5 {[%clk 0:02:32.7]} 19. Ba7 {[%clk 0:01:01.2]} 19... Rc8
{[%clk 0:02:29.7]} 20. Bc5 {[%clk 0:01:01.2]} 20... Rxc5 {[%clk 0:02:28.8]} 21.
bxc5 {[%clk 0:01:01.3]} 21... d4 {[%clk 0:02:28.6]} 22. Nb5 {[%clk 0:00:57.2]}
22... Qa5 {[%clk 0:02:22.7]} 23. a4 {[%clk 0:00:54.6]} 23... Rc8 {[%clk
0:02:22.3]} 24. Nd6 {[%clk 0:00:49.5]} 24... Rc7 {[%clk 0:02:17.5]} 25. Qb1
{[%clk 0:00:45.2]} 25... Qxc5 {[%clk 0:02:16]} 26. Qb8+ {[%clk 0:00:41.8]} 26...
Kh7 {[%clk 0:02:08.9]} 27. Nb7 {[%clk 0:00:40]} 27... Rc8 {[%clk 0:01:45.4]} 28.
Nxc5 {[%clk 0:00:32.3]} 28... Rxb8 {[%clk 0:01:45.4]} 29. Nxe6 {[%clk
0:00:32.7]} 29... fxe6 {[%clk 0:01:46.3]} 30. a5 {[%clk 0:00:32.7]} 30... Nd5
{[%clk 0:01:45.2]} 31. Rfb1 {[%clk 0:00:31.2]} 31... Ra8 {[%clk 0:01:44]} 32. a6
{[%clk 0:00:30.7]} 32... Bf8 {[%clk 0:01:37.2]} 33. Rb7+ {[%clk 0:00:27.8]}
33... Kg8 {[%clk 0:01:36]} 34. a7 {[%clk 0:00:28.1]} 34... Bd6 {[%clk
0:01:35.4]} 35. Rd7 {[%clk 0:00:27]} 35... Bc5 {[%clk 0:01:30.2]} 36. Rxd5
{[%clk 0:00:27.1]} 1-0

[Event "*** SCC Grand Prix: Titled Tuesday Blitz"]
[Site "Chess.com"]
[Date "2020.08.11"]
[Round "3"]
[White "StellarChessPro"]
[Black "Srchesschilango"]
[Result "1-0"]
[WhiteElo "2547"]
[BlackElo "2220"]
[TimeControl "180+1"]
[EndTime "10:28:08 PDT"]
[Termination "StellarChessPro won by resignation"]

1. b3 {[%clk 0:03:00.9]} 1... d5 {[%clk 0:02:57.8]} 2. Bb2 {[%clk 0:03:01.8]}
2... Nf6 {[%clk 0:02:55.7]} 3. e3 {[%clk 0:03:02]} 3... Bg4 {[%clk 0:02:54.8]}
4. Be2 {[%clk 0:03:01.9]} 4... Bxe2 {[%clk 0:02:54.3]} 5. Nxe2 {[%clk
0:03:02.8]} 5... Nc6 {[%clk 0:02:52.4]} 6. O-O {[%clk 0:03:03.7]} 6... e5 {[%clk
0:02:52.2]} 7. f4 {[%clk 0:03:03.5]} 7... exf4 {[%clk 0:02:51.4]} 8. Nxf4 {[%clk
0:03:03.5]} 8... Bd6 {[%clk 0:02:50.5]} 9. Nh5 {[%clk 0:02:57.1]} 9... Be5
{[%clk 0:02:39.2]} 10. Nxf6+ {[%clk 0:02:56.7]} 10... Bxf6 {[%clk 0:02:37.6]}
11. Bxf6 {[%clk 0:02:55.9]} 11... gxf6 {[%clk 0:02:38.5]} 12. Qf3 {[%clk
0:02:54.3]} 12... Rg8 {[%clk 0:02:29.7]} 13. Qxf6 {[%clk 0:02:53.1]} 13... Qd7
{[%clk 0:02:29.5]} 14. Nc3 {[%clk 0:02:52.2]} 14... Rg6 {[%clk 0:02:28.7]} 15.
Qf5 {[%clk 0:02:50]} 15... O-O-O {[%clk 0:02:18.2]} 16. Qxf7 {[%clk 0:02:42.5]}
16... Ne7 {[%clk 0:02:16.7]} 17. Qxh7 {[%clk 0:02:37.5]} 17... Rdg8 {[%clk
0:02:16.1]} 18. Rf2 {[%clk 0:02:19.9]} 18... d4 {[%clk 0:02:15.4]} 19. Ne4
{[%clk 0:02:04.4]} 19... dxe3 {[%clk 0:02:03.9]} 20. dxe3 {[%clk 0:02:05.3]}
20... Qe6 {[%clk 0:01:59.6]} 21. Ng3 {[%clk 0:01:54.1]} 21... Qxe3 {[%clk
0:01:55.8]} 22. Rf1 {[%clk 0:01:50.5]} 22... Rh6 {[%clk 0:01:44]} 23. Qd3 {[%clk
0:01:49.5]} 23... Qc5 {[%clk 0:01:23.5]} 24. Qc4 {[%clk 0:01:22.5]} 24... Qb6
{[%clk 0:01:15]} 25. Kh1 {[%clk 0:01:04]} 25... Rxg3 {[%clk 0:01:06.3]} 26. Rf8+
{[%clk 0:01:03.8]} 26... Kd7 {[%clk 0:01:05.9]} 27. Rd1+ {[%clk 0:01:01.6]}
27... Rd6 {[%clk 0:00:52.9]} 28. Rxd6+ {[%clk 0:01:01.2]} 28... Qxd6 {[%clk
0:00:52.7]} 29. hxg3 {[%clk 0:01:01.3]} 29... Qd1+ {[%clk 0:00:52.3]} 30. Rf1
{[%clk 0:00:59.2]} 30... Qh5+ {[%clk 0:00:52]} 31. Kg1 {[%clk 0:00:58.8]} 31...
b5 {[%clk 0:00:50.2]} 32. Qd4+ {[%clk 0:00:56.5]} 1-0

[Event "*** SCC Grand Prix: Titled Tuesday Blitz"]
[Site "Chess.com"]
[Date "2020.08.11"]
[Round "3"]
[White "Micki-taryan"]
[Black "belisarius64"]
[Result "1-0"]
[WhiteElo "3055"]
[BlackElo "2718"]
[TimeControl "180+1"]
[EndTime "10:28:15 PDT"]
[Termination "Micki-taryan won by resignation"]

1. Nf3 {[%clk 0:03:00.9]} 1... Nf6 {[%clk 0:03:00]} 2. e3 {[%clk 0:03:00.8]}
2... g6 {[%clk 0:03:00.4]} 3. b3 {[%clk 0:03:01.2]} 3... Bg7 {[%clk 0:03:00.8]}
4. Bb2 {[%clk 0:03:02.1]} 4... O-O {[%clk 0:03:01.6]} 5. c4 {[%clk 0:03:02.5]}
5... d6 {[%clk 0:03:02.2]} 6. d4 {[%clk 0:03:02.8]} 6... Nc6 {[%clk 0:02:59.1]}
7. Be2 {[%clk 0:03:02.4]} 7... Bf5 {[%clk 0:02:37.6]} 8. O-O {[%clk 0:03:00.2]}
8... Ne4 {[%clk 0:02:37.4]} 9. Nbd2 {[%clk 0:02:50.8]} 9... Nxd2 {[%clk
0:02:32.4]} 10. Qxd2 {[%clk 0:02:51.7]} 10... e5 {[%clk 0:02:31]} 11. Rfd1
{[%clk 0:02:49.8]} 11... Be4 {[%clk 0:02:24.9]} 12. b4 {[%clk 0:02:43.2]} 12...
exd4 {[%clk 0:02:15.9]} 13. Nxd4 {[%clk 0:02:38.2]} 13... Re8 {[%clk 0:02:08.8]}
14. Bf1 {[%clk 0:02:33.7]} 14... Nxd4 {[%clk 0:01:46.8]} 15. Bxd4 {[%clk
0:02:34.6]} 15... Bxd4 {[%clk 0:01:46.2]} 16. Qxd4 {[%clk 0:02:33.2]} 16... Qe7
{[%clk 0:01:45.8]} 17. a4 {[%clk 0:02:29.1]} 17... c5 {[%clk 0:01:44.6]} 18. Qd2
{[%clk 0:02:24.2]} 18... Rad8 {[%clk 0:01:41.5]} 19. f3 {[%clk 0:02:11.6]} 19...
Bf5 {[%clk 0:01:41.6]} 20. e4 {[%clk 0:02:11.4]} 20... Be6 {[%clk 0:01:36.1]}
21. a5 {[%clk 0:02:10.8]} 21... f5 {[%clk 0:01:31.6]} 22. Re1 {[%clk 0:02:01.9]}
22... fxe4 {[%clk 0:01:25]} 23. Rxe4 {[%clk 0:01:59.3]} 23... Qf7 {[%clk
0:01:24.5]} 24. Rae1 {[%clk 0:01:55]} 24... Bf5 {[%clk 0:01:13.5]} 25. Rxe8+
{[%clk 0:01:54.8]} 25... Rxe8 {[%clk 0:01:14.4]} 26. Rd1 {[%clk 0:01:55.7]}
26... Qe7 {[%clk 0:01:02]} 27. b5 {[%clk 0:01:44.1]} 27... Rd8 {[%clk
0:00:59.1]} 28. Re1 {[%clk 0:01:39.3]} 28... Qf7 {[%clk 0:00:58.1]} 29. Qg5
{[%clk 0:01:24.1]} 29... Rd7 {[%clk 0:00:42.7]} 30. h4 {[%clk 0:01:19.9]} 30...
Kg7 {[%clk 0:00:28.8]} 31. Qe3 {[%clk 0:01:15.1]} 31... b6 {[%clk 0:00:22.9]}
32. g4 {[%clk 0:01:13.4]} 1-0

[Event "*** SCC Grand Prix: Titled Tuesday Blitz"]
[Site "Chess.com"]
[Date "2020.08.11"]
[Round "3"]
[White "Onischuk_V"]
[Black "Fighter008"]
[Result "1-0"]
[WhiteElo "2915"]
[BlackElo "2676"]
[TimeControl "180+1"]
[EndTime "10:28:21 PDT"]
[Termination "Onischuk_V won by resignation"]

1. e4 {[%clk 0:02:59.3]} 1... c5 {[%clk 0:02:55.5]} 2. Nc3 {[%clk 0:02:57.7]}
2... a6 {[%clk 0:02:53.3]} 3. Nge2 {[%clk 0:02:51.8]} 3... e6 {[%clk 0:02:49.4]}
4. g3 {[%clk 0:02:51.4]} 4... d5 {[%clk 0:02:38.7]} 5. d3 {[%clk 0:02:48.1]}
5... Nf6 {[%clk 0:02:31.4]} 6. Bg2 {[%clk 0:02:47.5]} 6... d4 {[%clk 0:02:26.8]}
7. Nb1 {[%clk 0:02:46.3]} 7... g6 {[%clk 0:02:17.5]} 8. a4 {[%clk 0:02:43.9]}
8... Bg7 {[%clk 0:02:14.8]} 9. Nd2 {[%clk 0:02:43.7]} 9... Nc6 {[%clk
0:02:09.9]} 10. Nc4 {[%clk 0:02:42.8]} 10... O-O {[%clk 0:01:55.7]} 11. a5
{[%clk 0:02:40.3]} 11... e5 {[%clk 0:01:11.4]} 12. Bd2 {[%clk 0:02:39.2]} 12...
Rb8 {[%clk 0:01:10.9]} 13. O-O {[%clk 0:02:37.1]} 13... Be6 {[%clk 0:01:11]} 14.
Nc1 {[%clk 0:02:37.1]} 14... Nd7 {[%clk 0:01:09.2]} 15. f4 {[%clk 0:02:30.1]}
15... exf4 {[%clk 0:01:08.4]} 16. gxf4 {[%clk 0:02:28.9]} 16... f5 {[%clk
0:01:08.7]} 17. e5 {[%clk 0:02:29.2]} 17... Kh8 {[%clk 0:01:02.4]} 18. Nb3
{[%clk 0:02:25.7]} 18... g5 {[%clk 0:00:59.9]} 19. fxg5 {[%clk 0:02:22]} 19...
Bxc4 {[%clk 0:00:58.1]} 20. dxc4 {[%clk 0:02:21.1]} 20... Ncxe5 {[%clk
0:00:58.8]} 21. Bd5 {[%clk 0:02:03]} 21... Ng6 {[%clk 0:00:54.5]} 22. Qh5 {[%clk
0:01:55.5]} 22... Qc7 {[%clk 0:00:42.6]} 23. Rf3 {[%clk 0:01:49.6]} 23... Nde5
{[%clk 0:00:18.9]} 24. Rh3 {[%clk 0:01:45.2]} 24... h6 {[%clk 0:00:19.2]} 25.
Kh1 {[%clk 0:01:29.4]} 25... f4 {[%clk 0:00:19.3]} 26. gxh6 {[%clk 0:01:27.3]}
26... Bf6 {[%clk 0:00:18]} 27. Rg1 {[%clk 0:01:26.9]} 27... Ne7 {[%clk
0:00:16.2]} 28. Rg7 {[%clk 0:01:23.2]} 28... Qd6 {[%clk 0:00:15.2]} 29. Be4
{[%clk 0:01:19.6]} 29... Bxg7 {[%clk 0:00:15.2]} 30. hxg7+ {[%clk 0:01:19]}
30... Kxg7 {[%clk 0:00:15.7]} 31. Qh7+ {[%clk 0:01:18.9]} 31... Kf6 {[%clk
0:00:16.1]} 32. Rh6+ {[%clk 0:01:14.1]} 1-0

[Event "*** SCC Grand Prix: Titled Tuesday Blitz"]
[Site "Chess.com"]
[Date "2020.08.11"]
[Round "3"]
[White "bascheyaro"]
[Black "LyonBeast"]
[Result "1/2-1/2"]
[WhiteElo "2710"]
[BlackElo "3013"]
[TimeControl "180+1"]
[EndTime "10:28:26 PDT"]
[Termination "Game drawn by agreement"]

1. d4 {[%clk 0:03:00.9]} 1... d5 {[%clk 0:02:56.1]} 2. Nf3 {[%clk 0:03:00.4]}
2... Nf6 {[%clk 0:02:55.6]} 3. Bf4 {[%clk 0:03:00.1]} 3... e6 {[%clk 0:02:54.6]}
4. e3 {[%clk 0:02:59.7]} 4... Bd6 {[%clk 0:02:54.3]} 5. Bg3 {[%clk 0:02:59.4]}
5... b6 {[%clk 0:02:52.1]} 6. c4 {[%clk 0:02:59.7]} 6... O-O {[%clk 0:02:48.1]}
7. Nc3 {[%clk 0:03:00]} 7... Bb7 {[%clk 0:02:42.2]} 8. a3 {[%clk 0:03:00]} 8...
Nbd7 {[%clk 0:02:24.9]} 9. cxd5 {[%clk 0:02:58.5]} 9... Nxd5 {[%clk 0:02:23.5]}
10. Nxd5 {[%clk 0:02:56.8]} 10... Bxd5 {[%clk 0:02:24.4]} 11. Bd3 {[%clk
0:02:56.9]} 11... Nf6 {[%clk 0:02:19.4]} 12. Qe2 {[%clk 0:02:44.6]} 12... Ne4
{[%clk 0:02:15.4]} 13. O-O {[%clk 0:02:23.6]} 13... Nxg3 {[%clk 0:02:08.3]} 14.
hxg3 {[%clk 0:02:24.5]} 14... c5 {[%clk 0:02:05.8]} 15. dxc5 {[%clk 0:02:22.9]}
15... Bxc5 {[%clk 0:02:05.6]} 16. Rfd1 {[%clk 0:02:22.5]} 16... Qf6 {[%clk
0:02:02.8]} 17. e4 {[%clk 0:02:19.4]} 17... Bb7 {[%clk 0:02:00.4]} 18. e5 {[%clk
0:02:19.8]} 18... Qh6 {[%clk 0:01:36.3]} 19. Be4 {[%clk 0:02:19.7]} 19... Bxe4
{[%clk 0:01:35.6]} 20. Qxe4 {[%clk 0:02:20.6]} 20... Rad8 {[%clk 0:01:32.1]} 21.
b4 {[%clk 0:02:20.8]} 21... Be7 {[%clk 0:01:30.9]} 22. Nd4 {[%clk 0:02:20.8]}
22... Rd7 {[%clk 0:01:21.1]} 23. Nc6 {[%clk 0:02:19.9]} 23... Rc7 {[%clk
0:01:21.6]} 24. Rac1 {[%clk 0:02:08.7]} 24... Qg6 {[%clk 0:01:15.1]} 25. Qxg6
{[%clk 0:02:01.5]} 25... hxg6 {[%clk 0:01:16]} 26. Nxe7+ {[%clk 0:01:52.5]}
26... Rxe7 {[%clk 0:01:15.9]} 27. b5 {[%clk 0:01:50.3]} 27... g5 {[%clk
0:01:15.8]} 28. g4 {[%clk 0:01:49.4]} 28... f6 {[%clk 0:01:16.1]} 29. exf6
{[%clk 0:01:49.1]} 29... gxf6 {[%clk 0:01:17]} 30. Rc6 {[%clk 0:01:47.8]} 30...
Kf7 {[%clk 0:01:17.4]} 31. Rdd6 {[%clk 0:01:45.1]} 31... Rb8 {[%clk 0:01:10.4]}
32. a4 {[%clk 0:01:40.3]} 32... Rbb7 {[%clk 0:01:11.3]} 33. f3 {[%clk
0:01:40.8]} 33... Rbd7 {[%clk 0:01:11.6]} 34. Rxd7 {[%clk 0:01:37.1]} 34... Rxd7
{[%clk 0:01:12.5]} 35. Kf2 {[%clk 0:01:37.5]} 35... e5 {[%clk 0:01:10.4]} 36.
Ke3 {[%clk 0:01:37.8]} 36... Kg6 {[%clk 0:01:10.7]} 37. Rc4 {[%clk 0:01:36.3]}
37... Rh7 {[%clk 0:01:01.1]} 38. g3 {[%clk 0:01:35.5]} 38... Rd7 {[%clk
0:00:59.1]} 39. f4 {[%clk 0:01:33.7]} 39... Re7 {[%clk 0:00:54.4]} 40. f5+
{[%clk 0:01:22.2]} 40... Kf7 {[%clk 0:00:53.7]} 41. a5 {[%clk 0:01:21]} 41...
bxa5 {[%clk 0:00:52.3]} 42. Ra4 {[%clk 0:01:21.1]} 42... Rb7 {[%clk 0:00:49.5]}
43. Rxa5 {[%clk 0:01:21.6]} 43... Ke7 {[%clk 0:00:49.5]} 44. Ke4 {[%clk
0:01:14.4]} 44... Kd6 {[%clk 0:00:49.2]} 45. Ra6+ {[%clk 0:01:14.6]} 45... Rb6
{[%clk 0:00:49.7]} 46. Rxa7 {[%clk 0:01:14.9]} 46... Rxb5 {[%clk 0:00:49.9]} 47.
Ra6+ {[%clk 0:01:15.3]} 47... Ke7 {[%clk 0:00:49.8]} 48. Ra7+ {[%clk 0:01:12.4]}
48... Kf8 {[%clk 0:00:49.7]} 49. Ra8+ {[%clk 0:01:07.8]} 1/2-1/2

[Event "*** SCC Grand Prix: Titled Tuesday Blitz"]
[Site "Chess.com"]
[Date "2020.08.11"]
[Round "3"]
[White "sergivila"]
[Black "DenLaz"]
[Result "0-1"]
[WhiteElo "2423"]
[BlackElo "2686"]
[TimeControl "180+1"]
[EndTime "10:28:29 PDT"]
[Termination "DenLaz won by resignation"]

1. e4 {[%clk 0:03:00.9]} 1... c5 {[%clk 0:02:59.6]} 2. Nf3 {[%clk 0:02:59.9]}
2... Nc6 {[%clk 0:03:00.2]} 3. Bb5 {[%clk 0:02:58.7]} 3... g6 {[%clk 0:02:59]}
4. Bxc6 {[%clk 0:02:59.2]} 4... dxc6 {[%clk 0:02:58.7]} 5. d3 {[%clk 0:02:59.3]}
5... Bg7 {[%clk 0:02:59.2]} 6. h3 {[%clk 0:02:44]} 6... e5 {[%clk 0:02:58.2]} 7.
Be3 {[%clk 0:02:37.4]} 7... b6 {[%clk 0:02:57.5]} 8. Nc3 {[%clk 0:02:34.4]} 8...
Ne7 {[%clk 0:02:56.5]} 9. Qd2 {[%clk 0:02:32.8]} 9... f6 {[%clk 0:02:55.4]} 10.
a3 {[%clk 0:02:27]} 10... a5 {[%clk 0:02:52.4]} 11. O-O {[%clk 0:02:23.7]} 11...
g5 {[%clk 0:02:50.2]} 12. Rab1 {[%clk 0:01:52.1]} 12... a4 {[%clk 0:02:24.8]}
13. b4 {[%clk 0:01:37.9]} 13... axb3 {[%clk 0:02:24]} 14. Rxb3 {[%clk
0:01:35.4]} 14... Be6 {[%clk 0:02:23.9]} 15. Rb2 {[%clk 0:01:35.5]} 15... Rxa3
{[%clk 0:02:22.3]} 16. Rfb1 {[%clk 0:01:35]} 16... Nc8 {[%clk 0:02:22]} 17. Qc1
{[%clk 0:01:27.8]} 17... Ra7 {[%clk 0:02:02.5]} 18. Nh2 {[%clk 0:00:48.4]} 18...
O-O {[%clk 0:01:58.8]} 19. Ne2 {[%clk 0:00:44.6]} 19... h5 {[%clk 0:01:52.7]}
20. Ng3 {[%clk 0:00:33.1]} 20... h4 {[%clk 0:01:52]} 21. Nf5 {[%clk 0:00:32.5]}
21... Qd7 {[%clk 0:01:43.6]} 22. Nxg7 {[%clk 0:00:21.4]} 22... Kxg7 {[%clk
0:01:44.5]} 23. Rxb6 {[%clk 0:00:17.1]} 23... Nxb6 {[%clk 0:01:45.4]} 24. Bxc5
{[%clk 0:00:17.2]} 24... Nc8 {[%clk 0:01:39.4]} 25. Bxa7 {[%clk 0:00:16.4]}
25... Qxa7 {[%clk 0:01:38.4]} 26. Nf1 {[%clk 0:00:15.2]} 26... Nd6 {[%clk
0:01:37.2]} 27. Ne3 {[%clk 0:00:15.3]} 27... Rb8 {[%clk 0:01:37.5]} 28. Ra1
{[%clk 0:00:14.8]} 28... Qc5 {[%clk 0:01:37.7]} 29. c3 {[%clk 0:00:14.6]} 29...
Rb3 {[%clk 0:01:35.9]} 30. c4 {[%clk 0:00:13.5]} 30... Rxd3 {[%clk 0:01:35.5]}
31. Qc2 {[%clk 0:00:12.9]} 31... Rxe3 {[%clk 0:01:33.9]} 32. fxe3 {[%clk
0:00:12.6]} 32... Qxe3+ {[%clk 0:01:34.8]} 33. Kh2 {[%clk 0:00:12.5]} 33... Nxe4
{[%clk 0:01:33.7]} 34. Qb2 {[%clk 0:00:10.9]} 34... Bxh3 {[%clk 0:01:21.7]} 35.
Qb7+ {[%clk 0:00:08.9]} 35... Kg6 {[%clk 0:01:20.6]} 36. Ra7 {[%clk 0:00:08]}
36... Qg3+ {[%clk 0:01:19.8]} 0-1

[Event "*** SCC Grand Prix: Titled Tuesday Blitz"]
[Site "Chess.com"]
[Date "2020.08.11"]
[Round "3"]
[White "FlamingPhoenix123"]
[Black "kakarot_001"]
[Result "0-1"]
[WhiteElo "2538"]
[BlackElo "2820"]
[TimeControl "180+1"]
[EndTime "10:28:30 PDT"]
[Termination "kakarot_001 won by checkmate"]

1. e4 {[%clk 0:03:00.9]} 1... e5 {[%clk 0:02:58.7]} 2. Nf3 {[%clk 0:03:00.7]}
2... Nc6 {[%clk 0:02:59.1]} 3. d4 {[%clk 0:03:00.5]} 3... exd4 {[%clk 0:02:57]}
4. Bc4 {[%clk 0:03:00.6]} 4... Bc5 {[%clk 0:02:47.4]} 5. c3 {[%clk 0:02:49.2]}
5... Nf6 {[%clk 0:02:46.2]} 6. e5 {[%clk 0:02:48]} 6... d5 {[%clk 0:02:45.8]} 7.
Be2 {[%clk 0:02:48.1]} 7... d3 {[%clk 0:02:40.9]} 8. exf6 {[%clk 0:02:38.3]}
8... dxe2 {[%clk 0:02:39.9]} 9. Qxe2+ {[%clk 0:02:36.7]} 9... Be6 {[%clk
0:02:38.2]} 10. fxg7 {[%clk 0:02:08.8]} 10... Rg8 {[%clk 0:02:38.1]} 11. Bg5
{[%clk 0:02:02.6]} 11... Qd7 {[%clk 0:02:34.8]} 12. Bh6 {[%clk 0:01:55.4]} 12...
O-O-O {[%clk 0:02:32.8]} 13. b4 {[%clk 0:01:43.6]} 13... Bd6 {[%clk 0:02:30]}
14. b5 {[%clk 0:01:42.8]} 14... Ne7 {[%clk 0:02:26.2]} 15. Ne5 {[%clk
0:01:42.2]} 15... Bxe5 {[%clk 0:02:19.1]} 16. Qxe5 {[%clk 0:01:43.1]} 16... Qxb5
{[%clk 0:02:19.2]} 17. Nd2 {[%clk 0:01:27.2]} 17... Ng6 {[%clk 0:02:17.5]} 18.
Qe3 {[%clk 0:01:19.8]} 18... Rde8 {[%clk 0:02:07.8]} 19. c4 {[%clk 0:01:05.4]}
19... dxc4 {[%clk 0:02:05.6]} 20. O-O {[%clk 0:00:57.2]} 20... Bd5 {[%clk
0:02:05]} 21. Qg3 {[%clk 0:00:48.4]} 21... Bc6 {[%clk 0:01:57.9]} 22. Rab1
{[%clk 0:00:43.8]} 22... Qh5 {[%clk 0:01:56.8]} 23. Bg5 {[%clk 0:00:39.7]} 23...
Rxg7 {[%clk 0:01:51.7]} 24. Bf6 {[%clk 0:00:30.7]} 24... Nf4 {[%clk 0:01:48.6]}
25. Qxg7 {[%clk 0:00:23.5]} 25... Nxg2 {[%clk 0:01:39]} 26. f3 {[%clk
0:00:15.9]} 26... Nf4 {[%clk 0:01:36.9]} 27. Rbe1 {[%clk 0:00:13.1]} 27... Nh3+
{[%clk 0:01:27.6]} 28. Kg2 {[%clk 0:00:12.3]} 28... Nf4+ {[%clk 0:01:24.2]} 29.
Kg1 {[%clk 0:00:12.5]} 29... Ne2+ {[%clk 0:01:17.9]} 30. Kg2 {[%clk 0:00:09.6]}
30... c3 {[%clk 0:01:13.2]} 31. Ne4 {[%clk 0:00:09.1]} 31... Rxe4 {[%clk
0:01:08.9]} 32. fxe4 {[%clk 0:00:10]} 32... Bxe4+ {[%clk 0:01:09.6]} 33. Kf2
{[%clk 0:00:09.3]} 33... Qf3# {[%clk 0:01:09.6]} 0-1